[Event "*** Titled Tuesday Blitz"]
[Site "Chess.com"]
[Date "2021.02.09"]
[Round "5"]
[White "rugbyclub"]
[Black "juancruzarias"]
[Result "0-1"]
[WhiteElo "2305"]
[BlackElo "2632"]
[TimeControl "180+1"]
[EndTime "10:57:07 PST"]
[Termination "juancruzarias won by checkmate"]

1. d4 {[%clk 0:03:00.9]} 1... e6 {[%clk 0:02:54.8]} 2. e4 {[%clk 0:02:59.5]}
2... d5 {[%clk 0:02:54.3]} 3. e5 {[%clk 0:02:56.7]} 3... c5 {[%clk 0:02:53.5]}
4. c3 {[%clk 0:02:57.3]} 4... Qb6 {[%clk 0:02:53.4]} 5. Nf3 {[%clk 0:02:56.7]}
5... Nc6 {[%clk 0:02:53.4]} 6. a3 {[%clk 0:02:55.7]} 6... Nh6 {[%clk 0:02:49.4]}
7. b4 {[%clk 0:02:54.2]} 7... cxd4 {[%clk 0:02:49.1]} 8. cxd4 {[%clk 0:02:53.9]}
8... Nf5 {[%clk 0:02:49.4]} 9. Bb2 {[%clk 0:02:52.7]} 9... Be7 {[%clk
0:02:46.3]} 10. Bd3 {[%clk 0:02:49.8]} 10... a5 {[%clk 0:02:43.3]} 11. b5 {[%clk
0:02:47.4]} 11... a4 {[%clk 0:02:42.5]} 12. Nc3 {[%clk 0:02:36.4]} 12... Na5
{[%clk 0:02:33.3]} 13. Nxa4 {[%clk 0:02:33.4]} 13... Qa7 {[%clk 0:02:29.5]} 14.
b6 {[%clk 0:02:27.8]} 14... Qb8 {[%clk 0:02:25]} 15. Bb5+ {[%clk 0:02:13.8]}
15... Bd7 {[%clk 0:02:17.6]} 16. Qd3 {[%clk 0:02:12.5]} 16... Bxb5 {[%clk
0:02:15.7]} 17. Qxb5+ {[%clk 0:02:11.3]} 17... Nc6 {[%clk 0:02:16.6]} 18. Rc1
{[%clk 0:02:09.2]} 18... O-O {[%clk 0:02:12.1]} 19. Nc5 {[%clk 0:02:06.9]} 19...
Ra5 {[%clk 0:02:08.6]} 20. Qb3 {[%clk 0:01:59.1]} 20... Bxc5 {[%clk 0:02:07.9]}
21. dxc5 {[%clk 0:01:50.8]} 21... d4 {[%clk 0:02:04.3]} 22. O-O {[%clk
0:01:48.1]} 22... Nxe5 {[%clk 0:02:00.5]} 23. Nxe5 {[%clk 0:01:44.8]} 23... Qxe5
{[%clk 0:02:01.4]} 24. Rfe1 {[%clk 0:01:26]} 24... Qf4 {[%clk 0:01:44]} 25. c6
{[%clk 0:01:02.9]} 25... bxc6 {[%clk 0:01:43.3]} 26. Rxc6 {[%clk 0:00:58.7]}
26... Raa8 {[%clk 0:01:32.5]} 27. b7 {[%clk 0:00:56.8]} 27... Rab8 {[%clk
0:01:31.9]} 28. a4 {[%clk 0:00:56.9]} 28... h5 {[%clk 0:01:23.7]} 29. a5 {[%clk
0:00:54.4]} 29... Qd2 {[%clk 0:01:23.8]} 30. Ra1 {[%clk 0:00:51.7]} 30... Ne7
{[%clk 0:00:51.3]} 31. Rc5 {[%clk 0:00:40.5]} 31... Nd5 {[%clk 0:00:23.1]} 32.
a6 {[%clk 0:00:40.2]} 32... Ne3 {[%clk 0:00:10.6]} 33. a7 {[%clk 0:00:19.2]}
33... Rxb7 {[%clk 0:00:10.6]} 34. Qxb7 {[%clk 0:00:19.8]} 34... Nd1 {[%clk
0:00:11.2]} 35. Bxd4 {[%clk 0:00:15.9]} 35... Qe1# {[%clk 0:00:10.9]} 0-1

[Event "*** Titled Tuesday Blitz"]
[Site "Chess.com"]
[Date "2021.02.09"]
[Round "5"]
[White "Kapibara_Warri0r"]
[Black "boasovietica"]
[Result "1-0"]
[WhiteElo "2207"]
[BlackElo "2454"]
[TimeControl "180+1"]
[EndTime "10:57:09 PST"]
[Termination "Kapibara_Warri0r won by checkmate"]

1. d4 {[%clk 0:03:00.9]} 1... Nf6 {[%clk 0:02:54.3]} 2. Bf4 {[%clk 0:02:57.9]}
2... g6 {[%clk 0:02:54.1]} 3. e3 {[%clk 0:02:51.4]} 3... Bg7 {[%clk 0:02:54.2]}
4. Nf3 {[%clk 0:02:51.3]} 4... O-O {[%clk 0:02:54]} 5. h3 {[%clk 0:02:51.4]}
5... d6 {[%clk 0:02:53.8]} 6. Be2 {[%clk 0:02:40.1]} 6... b6 {[%clk 0:02:53]} 7.
Bh2 {[%clk 0:02:39.2]} 7... Bb7 {[%clk 0:02:52]} 8. O-O {[%clk 0:02:39]} 8...
Nbd7 {[%clk 0:02:51.8]} 9. c4 {[%clk 0:02:39.3]} 9... Ne4 {[%clk 0:02:49.5]} 10.
Nbd2 {[%clk 0:02:34.6]} 10... Ndf6 {[%clk 0:02:44.3]} 11. a4 {[%clk 0:02:27.6]}
11... a5 {[%clk 0:02:42.3]} 12. Qb1 {[%clk 0:02:13.1]} 12... Re8 {[%clk
0:02:34.6]} 13. Bd3 {[%clk 0:02:10.8]} 13... Nxd2 {[%clk 0:02:34.1]} 14. Nxd2
{[%clk 0:02:11.7]} 14... e5 {[%clk 0:02:14]} 15. d5 {[%clk 0:02:03.9]} 15... Nd7
{[%clk 0:02:11.9]} 16. e4 {[%clk 0:02:03.5]} 16... Nc5 {[%clk 0:02:10.9]} 17.
Bc2 {[%clk 0:02:03.5]} 17... Bc8 {[%clk 0:02:05.2]} 18. Nb3 {[%clk 0:02:01.9]}
18... Bd7 {[%clk 0:01:56.3]} 19. Nxc5 {[%clk 0:01:58.2]} 19... bxc5 {[%clk
0:01:57.2]} 20. Ra3 {[%clk 0:01:51.5]} 20... Rb8 {[%clk 0:01:55.2]} 21. Rb3
{[%clk 0:01:41]} 21... Rxb3 {[%clk 0:01:43]} 22. Bxb3 {[%clk 0:01:41.9]} 22...
Qb8 {[%clk 0:01:42.9]} 23. Bd1 {[%clk 0:01:39.6]} 23... Qb4 {[%clk 0:01:38.7]}
24. b3 {[%clk 0:01:35.5]} 24... f5 {[%clk 0:01:35.9]} 25. exf5 {[%clk
0:01:28.5]} 25... Bxf5 {[%clk 0:01:34.8]} 26. Bc2 {[%clk 0:01:26.1]} 26... Rf8
{[%clk 0:01:09.8]} 27. Kh1 {[%clk 0:01:12.8]} 27... Qd2 {[%clk 0:01:07.2]} 28.
Bxf5 {[%clk 0:00:59.6]} 28... Rxf5 {[%clk 0:01:08.1]} 29. Bg3 {[%clk 0:00:59.5]}
29... Rf8 {[%clk 0:00:54.7]} 30. f3 {[%clk 0:00:55.7]} 30... Bh6 {[%clk
0:00:43.8]} 31. Be1 {[%clk 0:00:54.4]} 31... Qe2 {[%clk 0:00:21.8]} 32. Bxa5
{[%clk 0:00:53.9]} 32... Rb8 {[%clk 0:00:21.3]} 33. Bxc7 {[%clk 0:00:41.7]}
33... Rxb3 {[%clk 0:00:20.7]} 34. Qd1 {[%clk 0:00:41.3]} 34... Qxc4 {[%clk
0:00:20.2]} 35. Bxd6 {[%clk 0:00:37.5]} 35... Rd3 {[%clk 0:00:18.4]} 36. Qe2
{[%clk 0:00:33.4]} 36... Qxd5 {[%clk 0:00:16.7]} 37. Bxc5 {[%clk 0:00:25.1]}
37... Rd2 {[%clk 0:00:14.7]} 38. Qb5 {[%clk 0:00:24.7]} 38... Bf4 {[%clk
0:00:12.4]} 39. Qe8+ {[%clk 0:00:24.1]} 39... Kg7 {[%clk 0:00:11.5]} 40. Qf8#
{[%clk 0:00:24.3]} 1-0

[Event "*** Titled Tuesday Blitz"]
[Site "Chess.com"]
[Date "2021.02.09"]
[Round "5"]
[White "Mihnea2017"]
[Black "Marty435"]
[Result "0-1"]
[WhiteElo "2397"]
[BlackElo "2590"]
[TimeControl "180+1"]
[EndTime "10:57:10 PST"]
[Termination "Marty435 won by resignation"]

1. e4 {[%clk 0:03:00.9]} 1... e6 {[%clk 0:02:59.3]} 2. d4 {[%clk 0:03:00.7]}
2... d5 {[%clk 0:02:59.1]} 3. Nd2 {[%clk 0:03:01]} 3... c5 {[%clk 0:02:57.9]} 4.
exd5 {[%clk 0:03:01.4]} 4... Qxd5 {[%clk 0:02:57.9]} 5. Ngf3 {[%clk 0:03:01.6]}
5... cxd4 {[%clk 0:02:57.5]} 6. Bc4 {[%clk 0:03:01.9]} 6... Qd6 {[%clk
0:02:57.6]} 7. O-O {[%clk 0:03:00.2]} 7... Nf6 {[%clk 0:02:58.1]} 8. Nb3 {[%clk
0:03:00.2]} 8... Nc6 {[%clk 0:02:58.4]} 9. Nbxd4 {[%clk 0:02:59.6]} 9... Nxd4
{[%clk 0:02:59.3]} 10. Nxd4 {[%clk 0:03:00]} 10... Be7 {[%clk 0:02:59.8]} 11.
Re1 {[%clk 0:02:49.9]} 11... O-O {[%clk 0:02:59.4]} 12. c3 {[%clk 0:02:47.9]}
12... a6 {[%clk 0:02:54.4]} 13. Qf3 {[%clk 0:02:39.9]} 13... Qc7 {[%clk
0:02:10.3]} 14. Bb3 {[%clk 0:02:39]} 14... Bd7 {[%clk 0:02:03.5]} 15. Bf4 {[%clk
0:02:37.2]} 15... Bd6 {[%clk 0:02:02.3]} 16. Bxd6 {[%clk 0:02:35.4]} 16... Qxd6
{[%clk 0:02:03.2]} 17. Rad1 {[%clk 0:02:35.9]} 17... Qc7 {[%clk 0:02:03.4]} 18.
h3 {[%clk 0:02:14.8]} 18... Rad8 {[%clk 0:02:03.3]} 19. Qe3 {[%clk 0:02:14.5]}
19... Rfe8 {[%clk 0:02:00.4]} 20. Nf3 {[%clk 0:02:14.2]} 20... Bc6 {[%clk
0:01:57.4]} 21. Ne5 {[%clk 0:02:12.7]} 21... Be4 {[%clk 0:01:53.3]} 22. Qg3
{[%clk 0:01:42.1]} 22... Rxd1 {[%clk 0:01:30.8]} 23. Rxd1 {[%clk 0:01:42.2]}
23... Rd8 {[%clk 0:01:31]} 24. Re1 {[%clk 0:01:09.8]} 24... Qc5 {[%clk
0:01:04.8]} 25. Kh2 {[%clk 0:01:08.8]} 25... h6 {[%clk 0:00:53.9]} 26. f3 {[%clk
0:01:06.8]} 26... Nh5 {[%clk 0:00:48.5]} 27. Qh4 {[%clk 0:01:06.3]} 27... Qxe5+
{[%clk 0:00:47.3]} 28. Kh1 {[%clk 0:01:00.7]} 28... Rd2 {[%clk 0:00:40.5]} 29.
fxe4 {[%clk 0:00:46.5]} 29... Ng3+ {[%clk 0:00:31.5]} 30. Kg1 {[%clk 0:00:43.8]}
30... g5 {[%clk 0:00:13.9]} 31. Qxh6 {[%clk 0:00:43.7]} 31... Qf4 {[%clk
0:00:10.2]} 0-1

[Event "*** Titled Tuesday Blitz"]
[Site "Chess.com"]
[Date "2021.02.09"]
[Round "5"]
[White "vovachesss"]
[Black "csati17"]
[Result "0-1"]
[WhiteElo "2738"]
[BlackElo "2578"]
[TimeControl "180+1"]
[EndTime "10:57:12 PST"]
[Termination "csati17 won by checkmate"]

1. d4 {[%clk 0:03:00.9]} 1... Nf6 {[%clk 0:02:59.2]} 2. Bf4 {[%clk 0:02:58.9]}
2... g6 {[%clk 0:02:57.5]} 3. e3 {[%clk 0:02:54.6]} 3... Bg7 {[%clk 0:02:56.7]}
4. Nf3 {[%clk 0:02:55.1]} 4... O-O {[%clk 0:02:56.1]} 5. h3 {[%clk 0:02:55.7]}
5... d6 {[%clk 0:02:55.8]} 6. Be2 {[%clk 0:02:55]} 6... Nbd7 {[%clk 0:02:54.7]}
7. O-O {[%clk 0:02:55]} 7... Re8 {[%clk 0:02:53.3]} 8. c3 {[%clk 0:02:54.6]}
8... c6 {[%clk 0:02:49.1]} 9. Nbd2 {[%clk 0:02:53.5]} 9... Qc7 {[%clk
0:02:47.1]} 10. a4 {[%clk 0:02:53]} 10... e5 {[%clk 0:02:47.2]} 11. dxe5 {[%clk
0:02:53.9]} 11... dxe5 {[%clk 0:02:47]} 12. Bh2 {[%clk 0:02:53.9]} 12... Nd5
{[%clk 0:02:37.2]} 13. Nc4 {[%clk 0:02:47.5]} 13... f5 {[%clk 0:02:24.8]} 14.
Qc2 {[%clk 0:02:33.2]} 14... Nc5 {[%clk 0:02:16.8]} 15. Nfd2 {[%clk 0:02:11.9]}
15... Qe7 {[%clk 0:02:09.4]} 16. e4 {[%clk 0:02:08.6]} 16... fxe4 {[%clk
0:02:02.2]} 17. Nxe4 {[%clk 0:02:09.5]} 17... Bf5 {[%clk 0:02:02.6]} 18. Ncd2
{[%clk 0:01:33]} 18... Nf6 {[%clk 0:01:53.3]} 19. Bc4+ {[%clk 0:01:17.5]} 19...
Kh8 {[%clk 0:01:44.1]} 20. f3 {[%clk 0:01:17.9]} 20... Ncxe4 {[%clk 0:01:23.3]}
21. fxe4 {[%clk 0:01:08.6]} 21... Qc5+ {[%clk 0:01:21.6]} 22. Kh1 {[%clk
0:01:07.7]} 22... Nxe4 {[%clk 0:01:20.8]} 23. Nxe4 {[%clk 0:00:21.5]} 23... Qxc4
{[%clk 0:01:20.8]} 24. Rae1 {[%clk 0:00:21.7]} 24... Rf8 {[%clk 0:01:02.7]} 25.
Rf3 {[%clk 0:00:17.2]} 25... Be6 {[%clk 0:00:56]} 26. Ng5 {[%clk 0:00:14.8]}
26... Bd5 {[%clk 0:00:53.8]} 27. Rxf8+ {[%clk 0:00:13.5]} 27... Rxf8 {[%clk
0:00:54.7]} 28. Qd2 {[%clk 0:00:06.8]} 28... Rf1+ {[%clk 0:00:53.8]} 29. Bg1
{[%clk 0:00:01.8]} 29... h6 {[%clk 0:00:43.7]} 30. Nf3 {[%clk 0:00:01.5]} 30...
Bxf3 {[%clk 0:00:37.9]} 31. gxf3 {[%clk 0:00:02.1]} 31... Rxf3 {[%clk
0:00:37.3]} 32. Kg2 {[%clk 0:00:02.7]} 32... Rd3 {[%clk 0:00:35]} 33. Qe2 {[%clk
0:00:02.9]} 33... Qd5+ {[%clk 0:00:31.6]} 34. Kf1 {[%clk 0:00:02.9]} 34... Rxh3
{[%clk 0:00:30.3]} 35. Rd1 {[%clk 0:00:01.9]} 35... Qf3+ {[%clk 0:00:22.6]} 36.
Bf2 {[%clk 0:00:02.3]} 36... Rh1# {[%clk 0:00:22.4]} 0-1

[Event "*** Titled Tuesday Blitz"]
[Site "Chess.com"]
[Date "2021.02.09"]
[Round "5"]
[White "LilRag"]
[Black "K_A_S_T_O_R"]
[Result "1-0"]
[WhiteElo "2597"]
[BlackElo "2795"]
[TimeControl "180+1"]
[EndTime "10:57:13 PST"]
[Termination "LilRag won by checkmate"]

1. Nf3 {[%clk 0:03:00.9]} 1... c5 {[%clk 0:02:59.6]} 2. e4 {[%clk 0:02:58.7]}
2... d6 {[%clk 0:02:59.4]} 3. d4 {[%clk 0:02:58.3]} 3... cxd4 {[%clk 0:02:59.5]}
4. Nxd4 {[%clk 0:02:58.8]} 4... Nf6 {[%clk 0:02:59.5]} 5. Nc3 {[%clk 0:02:57.6]}
5... a6 {[%clk 0:03:00]} 6. Be2 {[%clk 0:02:55.9]} 6... e6 {[%clk 0:02:59.8]} 7.
O-O {[%clk 0:02:54.9]} 7... Be7 {[%clk 0:02:59.2]} 8. Be3 {[%clk 0:02:54.7]}
8... Qc7 {[%clk 0:02:59.5]} 9. a4 {[%clk 0:02:54.4]} 9... b6 {[%clk 0:02:59.3]}
10. f4 {[%clk 0:02:52.2]} 10... Bb7 {[%clk 0:02:59.7]} 11. Bf3 {[%clk
0:02:52.6]} 11... Nbd7 {[%clk 0:03:00]} 12. f5 {[%clk 0:02:37.6]} 12... e5
{[%clk 0:02:58.4]} 13. Nde2 {[%clk 0:02:37]} 13... Rc8 {[%clk 0:02:53.1]} 14. g4
{[%clk 0:02:24.6]} 14... h6 {[%clk 0:02:51.6]} 15. h4 {[%clk 0:02:24.1]} 15...
Nh7 {[%clk 0:02:51.4]} 16. Qe1 {[%clk 0:02:23.3]} 16... Qd8 {[%clk 0:02:50.9]}
17. Bf2 {[%clk 0:02:20.4]} 17... O-O {[%clk 0:02:48.8]} 18. Rd1 {[%clk
0:02:18.4]} 18... Bc6 {[%clk 0:02:44.9]} 19. Kg2 {[%clk 0:02:12.4]} 19... b5
{[%clk 0:02:44.2]} 20. axb5 {[%clk 0:02:12.3]} 20... axb5 {[%clk 0:02:44.7]} 21.
Rd2 {[%clk 0:02:02.4]} 21... Ra8 {[%clk 0:02:34]} 22. Nc1 {[%clk 0:01:41.1]}
22... b4 {[%clk 0:02:30]} 23. Nd1 {[%clk 0:01:38.4]} 23... Qc7 {[%clk
0:02:21.8]} 24. Nd3 {[%clk 0:01:33.5]} 24... Rfb8 {[%clk 0:02:18.9]} 25. b3
{[%clk 0:01:27.4]} 25... Qb7 {[%clk 0:02:13.3]} 26. Re2 {[%clk 0:00:54.7]} 26...
Ra1 {[%clk 0:02:06.4]} 27. Qd2 {[%clk 0:00:50.5]} 27... Ndf6 {[%clk 0:01:54.4]}
28. Rfe1 {[%clk 0:00:45.5]} 28... d5 {[%clk 0:01:46.6]} 29. exd5 {[%clk
0:00:39]} 29... Bxd5 {[%clk 0:01:46.2]} 30. Nxe5 {[%clk 0:00:33.9]} 30... Bxf3+
{[%clk 0:01:45.4]} 31. Nxf3 {[%clk 0:00:33.8]} 31... Bf8 {[%clk 0:01:35.7]} 32.
g5 {[%clk 0:00:31.3]} 32... Ng4 {[%clk 0:01:33.4]} 33. Re4 {[%clk 0:00:25.9]}
33... Nxf2 {[%clk 0:01:26.7]} 34. Nxf2 {[%clk 0:00:25.7]} 34... Rxe1 {[%clk
0:01:25]} 35. Rxe1 {[%clk 0:00:26.6]} 35... hxg5 {[%clk 0:01:22.9]} 36. hxg5
{[%clk 0:00:27]} 36... Be7 {[%clk 0:01:18.8]} 37. Re4 {[%clk 0:00:23.4]} 37...
Bc5 {[%clk 0:01:10.3]} 38. Qe2 {[%clk 0:00:17.6]} 38... Qc6 {[%clk 0:01:06.5]}
39. Nd3 {[%clk 0:00:13.4]} 39... Bd6 {[%clk 0:01:02.6]} 40. Nd4 {[%clk
0:00:10.8]} 40... Qd5 {[%clk 0:01:02.4]} 41. Nf3 {[%clk 0:00:07.9]} 41... Kf8
{[%clk 0:00:56.9]} 42. Rd4 {[%clk 0:00:07.3]} 42... Qc6 {[%clk 0:00:56.4]} 43.
Qe4 {[%clk 0:00:07]} 43... Qxc2+ {[%clk 0:00:53.7]} 44. Nf2 {[%clk 0:00:04.9]}
44... Rc8 {[%clk 0:00:50.3]} 45. Rxd6 {[%clk 0:00:03.6]} 45... Qc5 {[%clk
0:00:45]} 46. Qd4 {[%clk 0:00:03.7]} 46... Qxf5 {[%clk 0:00:42.8]} 47. Rd8+
{[%clk 0:00:03.6]} 47... Ke7 {[%clk 0:00:43.1]} 48. Qd6# {[%clk 0:00:04]} 1-0

[Event "*** Titled Tuesday Blitz"]
[Site "Chess.com"]
[Date "2021.02.09"]
[Round "5"]
[White "platy3"]
[Black "aa175"]
[Result "0-1"]
[WhiteElo "2845"]
[BlackElo "2616"]
[TimeControl "180+1"]
[EndTime "10:57:14 PST"]
[Termination "aa175 won by resignation"]

1. e4 {[%clk 0:03:00.9]} 1... c5 {[%clk 0:02:59.3]} 2. Nf3 {[%clk 0:02:57.8]}
2... d6 {[%clk 0:02:59.6]} 3. d4 {[%clk 0:02:58.1]} 3... cxd4 {[%clk 0:03:00.5]}
4. Qxd4 {[%clk 0:02:56.6]} 4... Nf6 {[%clk 0:03:00.2]} 5. Be2 {[%clk 0:02:56.5]}
5... Nc6 {[%clk 0:02:59.5]} 6. Qe3 {[%clk 0:02:56.2]} 6... Bg4 {[%clk
0:02:59.1]} 7. O-O {[%clk 0:02:54.8]} 7... g6 {[%clk 0:02:50.5]} 8. h3 {[%clk
0:02:53.7]} 8... Bxf3 {[%clk 0:02:49]} 9. Bxf3 {[%clk 0:02:54.6]} 9... Bg7
{[%clk 0:02:49]} 10. Rd1 {[%clk 0:02:55.3]} 10... O-O {[%clk 0:02:48.2]} 11. Nc3
{[%clk 0:02:53.7]} 11... Nd7 {[%clk 0:02:34.9]} 12. Nd5 {[%clk 0:02:52.6]} 12...
Rc8 {[%clk 0:01:51.2]} 13. c3 {[%clk 0:02:49.7]} 13... b5 {[%clk 0:01:36.9]} 14.
Be2 {[%clk 0:02:45.6]} 14... a6 {[%clk 0:01:34.9]} 15. a4 {[%clk 0:02:42.6]}
15... e6 {[%clk 0:01:26.2]} 16. Nf4 {[%clk 0:02:39.1]} 16... Nc5 {[%clk
0:00:57.5]} 17. axb5 {[%clk 0:02:32.7]} 17... axb5 {[%clk 0:00:58.4]} 18. Bxb5
{[%clk 0:02:30.2]} 18... Qb6 {[%clk 0:00:57.9]} 19. Be2 {[%clk 0:02:20.3]} 19...
Rfd8 {[%clk 0:00:43.3]} 20. b4 {[%clk 0:01:50.7]} 20... Nxb4 {[%clk 0:00:36.6]}
21. Rb1 {[%clk 0:01:44.8]} 21... Bxc3 {[%clk 0:00:26.3]} 22. Qxc3 {[%clk
0:01:42.5]} 22... Ncd3 {[%clk 0:00:24.4]} 23. Be3 {[%clk 0:01:32.5]} 23... Nxf4
{[%clk 0:00:24.6]} 24. Qf6 {[%clk 0:00:55.6]} 24... Nxe2+ {[%clk 0:00:24.3]} 25.
Kh2 {[%clk 0:00:56]} 25... Qb5 {[%clk 0:00:19.5]} 26. Rxb4 {[%clk 0:00:33.7]}
26... Qxb4 {[%clk 0:00:13.6]} 27. Rd4 {[%clk 0:00:19.5]} 27... Nxd4 {[%clk
0:00:11.7]} 28. Bh6 {[%clk 0:00:15.1]} 28... Nf5 {[%clk 0:00:11.8]} 29. exf5
{[%clk 0:00:15.6]} 29... Qc3 {[%clk 0:00:11.8]} 30. Qe7 {[%clk 0:00:11.2]} 30...
Qe5+ {[%clk 0:00:11.1]} 31. f4 {[%clk 0:00:11.7]} 31... Qxf5 {[%clk 0:00:10]}
32. Bg5 {[%clk 0:00:12]} 32... Re8 {[%clk 0:00:08.6]} 33. Qd7 {[%clk 0:00:12.4]}
33... e5 {[%clk 0:00:06.1]} 34. Qxd6 {[%clk 0:00:12]} 34... exf4 {[%clk
0:00:06.3]} 35. Bh6 {[%clk 0:00:12.3]} 35... Qe5 {[%clk 0:00:04.8]} 0-1

[Event "*** Titled Tuesday Blitz"]
[Site "Chess.com"]
[Date "2021.02.09"]
[Round "5"]
[White "Fischerev7"]
[Black "soumeow"]
[Result "0-1"]
[WhiteElo "2372"]
[BlackElo "2240"]
[TimeControl "180+1"]
[EndTime "10:57:15 PST"]
[Termination "soumeow won by resignation"]

1. e4 {[%clk 0:03:00.9]} 1... c5 {[%clk 0:02:56.8]} 2. Nf3 {[%clk 0:02:57.5]}
2... Nc6 {[%clk 0:02:51.4]} 3. d4 {[%clk 0:02:55.6]} 3... cxd4 {[%clk
0:02:52.3]} 4. Nxd4 {[%clk 0:02:56.3]} 4... Nf6 {[%clk 0:02:52.4]} 5. Nc3 {[%clk
0:02:50]} 5... d6 {[%clk 0:02:47.8]} 6. Bg5 {[%clk 0:02:48.7]} 6... e6 {[%clk
0:02:42.5]} 7. Qd2 {[%clk 0:02:48]} 7... a6 {[%clk 0:02:41.5]} 8. O-O-O {[%clk
0:02:47.9]} 8... Bd7 {[%clk 0:02:41]} 9. f4 {[%clk 0:02:47.7]} 9... Be7 {[%clk
0:02:38.7]} 10. Nf3 {[%clk 0:02:47.2]} 10... b5 {[%clk 0:02:26.5]} 11. a3 {[%clk
0:02:44.2]} 11... b4 {[%clk 0:01:54.8]} 12. axb4 {[%clk 0:02:40.4]} 12... Nxb4
{[%clk 0:01:55.7]} 13. Bxf6 {[%clk 0:02:35.1]} 13... gxf6 {[%clk 0:01:48]} 14.
f5 {[%clk 0:02:31.1]} 14... Rc8 {[%clk 0:01:26.3]} 15. Qd4 {[%clk 0:02:21.6]}
15... Qa5 {[%clk 0:01:21.1]} 16. Kb1 {[%clk 0:02:07.3]} 16... e5 {[%clk
0:01:06.3]} 17. Qe3 {[%clk 0:01:43.6]} 17... d5 {[%clk 0:01:01.9]} 18. exd5
{[%clk 0:01:38.2]} 18... Bxf5 {[%clk 0:00:55.1]} 19. Bd3 {[%clk 0:01:33.7]}
19... Rxc3 {[%clk 0:00:33.2]} 20. bxc3 {[%clk 0:01:25.3]} 20... Qa2+ {[%clk
0:00:31.2]} 21. Kc1 {[%clk 0:01:25.1]} 21... Bxd3 {[%clk 0:00:30.7]} 22. Qf2
{[%clk 0:00:34.1]} 22... Bc5 {[%clk 0:00:20.4]} 23. Nd4 {[%clk 0:00:31.2]} 23...
exd4 {[%clk 0:00:13.3]} 24. cxd3 {[%clk 0:00:16.6]} 24... Qxf2 {[%clk
0:00:11.1]} 25. Rd2 {[%clk 0:00:17.1]} 25... Qe3 {[%clk 0:00:09]} 26. Kd1 {[%clk
0:00:14.5]} 26... Nxd3 {[%clk 0:00:08.6]} 27. Re2 {[%clk 0:00:12.8]} 27... Nf2+
{[%clk 0:00:08.7]} 28. Ke1 {[%clk 0:00:11.1]} 28... Qxe2+ {[%clk 0:00:09.6]} 29.
Kxe2 {[%clk 0:00:10]} 29... Nxh1 {[%clk 0:00:10.5]} 30. cxd4 {[%clk 0:00:07.2]}
30... Bxd4 {[%clk 0:00:11.4]} 31. Kd3 {[%clk 0:00:07.3]} 31... Be5 {[%clk
0:00:12]} 32. g3 {[%clk 0:00:07.2]} 32... Kd7 {[%clk 0:00:12.7]} 33. Ke4 {[%clk
0:00:06.3]} 33... Rc8 {[%clk 0:00:12.8]} 0-1

[Event "*** Titled Tuesday Blitz"]
[Site "Chess.com"]
[Date "2021.02.09"]
[Round "5"]
[White "Trickster_Pony"]
[Black "Taktikmonster"]
[Result "0-1"]
[WhiteElo "1490"]
[BlackElo "2283"]
[TimeControl "180+1"]
[EndTime "10:57:15 PST"]
[Termination "Taktikmonster won on time"]

1. c4 {[%clk 0:03:00.9]} 1... c5 {[%clk 0:03:00]} 2. g3 {[%clk 0:02:58.9]} 2...
g6 {[%clk 0:02:59]} 3. Bg2 {[%clk 0:02:58.8]} 3... Bg7 {[%clk 0:02:59.5]} 4. Nc3
{[%clk 0:02:59]} 4... Nc6 {[%clk 0:02:59.5]} 5. e3 {[%clk 0:02:58.2]} 5... d6
{[%clk 0:02:58.8]} 6. Nge2 {[%clk 0:02:57.8]} 6... e5 {[%clk 0:02:59.2]} 7. O-O
{[%clk 0:02:56.6]} 7... Nge7 {[%clk 0:02:59.6]} 8. d3 {[%clk 0:02:56.6]} 8...
O-O {[%clk 0:02:58.6]} 9. Rb1 {[%clk 0:02:54.4]} 9... Be6 {[%clk 0:02:54.9]} 10.
Nd5 {[%clk 0:02:54.1]} 10... Rb8 {[%clk 0:02:50.9]} 11. a3 {[%clk 0:02:49.2]}
11... b5 {[%clk 0:02:47.7]} 12. Nxe7+ {[%clk 0:02:46.5]} 12... Nxe7 {[%clk
0:02:46.5]} 13. cxb5 {[%clk 0:02:45]} 13... Rxb5 {[%clk 0:02:47.4]} 14. Nc3
{[%clk 0:02:44.3]} 14... Bb3 {[%clk 0:02:39.9]} 15. Qe2 {[%clk 0:02:31.8]} 15...
Rb8 {[%clk 0:02:38.7]} 16. e4 {[%clk 0:02:24.1]} 16... Nc6 {[%clk 0:02:35.6]}
17. Be3 {[%clk 0:02:16.8]} 17... Na5 {[%clk 0:02:12.9]} 18. Nd5 {[%clk
0:02:08.1]} 18... c4 {[%clk 0:02:03.1]} 19. Rbc1 {[%clk 0:02:02.8]} 19... Rc8
{[%clk 0:01:53.1]} 20. Bxa7 {[%clk 0:01:15.1]} 20... cxd3 {[%clk 0:01:49.6]} 21.
Qxd3 {[%clk 0:01:16]} 21... Bc4 {[%clk 0:01:39.1]} 22. Qe3 {[%clk 0:00:53]}
22... Qd7 {[%clk 0:00:54.2]} 23. Rfe1 {[%clk 0:00:12.9]} 23... Bxd5 {[%clk
0:00:41.1]} 24. exd5 {[%clk 0:00:09.6]} 24... Nc4 {[%clk 0:00:40.6]} 25. Qe2
{[%clk 0:00:08.5]} 25... Nxb2 {[%clk 0:00:26.9]} 26. Qxb2 {[%clk 0:00:05.8]}
26... Qxa7 {[%clk 0:00:26.1]} 27. Rc6 {[%clk 0:00:03.7]} 27... Rfd8 {[%clk
0:00:16.6]} 28. Qc2 {[%clk 0:00:01.9]} 28... Ra8 {[%clk 0:00:15.1]} 29. Rc7
{[%clk 0:00:01.7]} 29... Qxa3 {[%clk 0:00:14.5]} 30. Rc6 {[%clk 0:00:01.7]}
30... Qa5 {[%clk 0:00:11.3]} 31. Rc7 {[%clk 0:00:02.1]} 31... Qxe1+ {[%clk
0:00:11.1]} 32. Bf1 {[%clk 0:00:01.6]} 32... Ra1 {[%clk 0:00:12]} 0-1